bitfinex/quotes_SOLUSD_20230905
["timestamp","ask_amount","ask_price","bid_price","bid_amount"]
[1693934349358,2.44461036,20.246,20.229,62.711]
[1693934349757,7.705,20.245,20.229,62.711]
[1693934349961,2.44461036,20.244,20.229,62.711]
[1693934352053,2.44461036,20.244,20.229,7.711]
[1693934352362,57.44461036,20.244,20.229,7.711]
[1693934352565,2.44461036,20.244,20.229,7.711]
[1693934353662,2.44461036,20.244,20.229,32.28040225]
[1693934353864,2.44461036,20.244,20.23,55.0]
[1693934354051,2.44461036,20.244,20.232,7.71]
[1693934354361,2.44461036,20.248,20.233,55.0]
[1693934354748,2.44461036,20.248,20.233,62.709]
[1693934355050,57.44461036,20.248,20.233,62.709]
[1693934355450,57.44461036,20.248,20.233,87.27840225]
[1693934355660,2.44461036,20.248,20.234,24.56940225]
[1693934355858,10.14761036,20.25,20.235,82.709]
[1693934356059,10.14761036,20.25,20.235,75.0]
[1693934356259,10.14761036,20.25,20.235,82.709]
[1693934356659,2.44461036,20.25,20.235,82.709]
[1693934356965,2.44461036,20.251,20.235,82.709]
[1693934357164,10.14761036,20.251,20.235,82.709]
[1693934357767,55.0,20.25,20.235,82.709]
[1693934358065,2.44461036,20.249,20.235,82.709]
[1693934358764,2.44461036,20.25,20.235,82.709]
[1693934359352,10.14761036,20.25,20.235,82.709]
[1693934360466,2.44461036,20.25,20.235,82.709]
[1693934360769,10.14761036,20.251,20.235,82.709]
[1693934361356,2.44461036,20.251,20.235,82.709]
[1693934362168,65.14761036,20.252,20.235,82.709]
[1693934362564,10.14761036,20.252,20.235,82.709]
[1693934363560,9.64761036,20.252,20.235,82.709]
[1693934364350,9.64761036,20.252,20.235,27.709]
[1693934364554,1.94461036,20.25,20.235,27.709]
[1693934365467,9.64761036,20.25,20.235,27.709]
[1693934365858,9.64761036,20.25,20.236,55.0]
[1693934366158,7.703,20.25,20.236,55.0]
[1693934366872,1.94461036,20.253,20.236,62.708]
[1693934367060,7.703,20.252,20.236,62.708]
[1693934367370,1.94461036,20.251,20.236,62.708]
[1693934368366,9.64761036,20.251,20.236,62.708]
[1693934368557,1.94461036,20.251,20.236,87.27740225]
[1693934368763,1.94461036,20.252,20.236,87.27740225]
[1693934369273,7.702,20.253,20.236,87.27740225]
[1693934369476,87.277403,20.255,20.236,87.27740225]
[1693934369477,1.94461036,20.252,20.236,87.27740225]
[1693934369773,56.94461036,20.254,20.236,112.18340225]
[1693934370274,64.64661036,20.254,20.236,112.18340225]
[1693934370473,9.64661036,20.254,20.236,112.18340225]
[1693934371571,1.94461036,20.254,20.241,7.706]
[1693934371760,56.94461036,20.254,20.239,7.707]
[1693934371967,1.94461036,20.254,20.24,7.707]
[1693934372162,1.94461036,20.254,20.241,55.0]
[1693934372369,1.94461036,20.254,20.241,62.706]
[1693934372568,9.64661036,20.254,20.241,55.0]
[1693934372777,9.64661036,20.254,20.24,55.0]
[1693934373074,9.64661036,20.254,20.24,29.65]
[1693934373371,9.64661036,20.254,20.241,55.0]
[1693934373573,64.64661036,20.254,20.241,55.0]
[1693934375176,64.64661036,20.254,20.24,29.65]
[1693934376285,9.64661036,20.254,20.241,55.0]
[1693934377283,9.64661036,20.254,20.24,29.65]
[1693934378980,9.64661036,20.254,20.24,37.357]
[1693934380180,9.64661036,20.254,20.241,55.0]
[1693934382286,1.94461036,20.254,20.242,7.706]
[1693934382487,1.94461036,20.255,20.243,55.0]
[1693934382681,9.64661036,20.255,20.243,55.0]
[1693934382888,9.64661036,20.255,20.241,55.0]
[1693934383490,9.64661036,20.255,20.241,62.706]
[1693934384789,9.64661036,20.255,20.241,55.0]
[1693934391582,9.64661036,20.255,20.24,29.65]
[1693934391778,7.703,20.251,20.24,29.65]
[1693934391985,1.94461036,20.25,20.24,29.65]
[1693934392892,9.64761036,20.25,20.24,29.65]
[1693934396995,1.94461036,20.25,20.24,29.65]
[1693934397207,1.94461036,20.253,20.241,55.0]
[1693934397507,1.94461036,20.253,20.241,62.706]
[1693934397686,7.701,20.256,20.241,62.706]
[1693934397687,1.94461036,20.255,20.241,62.706]
[1693934397888,9.64561036,20.255,20.241,62.706]
[1693934400496,9.64561036,20.255,20.241,55.0]
[1693934400809,9.64561036,20.255,20.24,29.65]
[1693934400998,9.64661036,20.253,20.24,29.65]
[1693934402099,55.0,20.252,20.24,29.65]
[1693934402319,9.64761036,20.251,20.24,29.65]
[1693934407009,1.94461036,20.251,20.24,29.65]
[1693934407199,1.94461036,20.252,20.24,29.65]
[1693934407598,1.94461036,20.252,20.24,37.357]
[1693934407799,7.701,20.256,20.241,62.706]
[1693934407999,1.94461036,20.255,20.241,62.706]
[1693934409204,9.64661036,20.255,20.241,62.706]
[1693934411902,9.64661036,20.255,20.233,79.67727755]
[1693934412219,7.703,20.25,20.234,27.709]
[1693934412407,1.94461036,20.249,20.234,27.709]
[1693934414315,1.94461036,20.249,20.235,55.0]
[1693934414621,1.94461036,20.249,20.237,7.708]
[1693934414820,1.94461036,20.249,20.238,55.0]
[1693934415724,7.703,20.252,20.238,55.0]
[1693934415927,1.94461036,20.251,20.238,55.0]
[1693934416720,9.64761036,20.251,20.238,55.0]
[1693934419004,1.94461036,20.251,20.24,29.65]
[1693934419210,1.94461036,20.252,20.24,29.65]
[1693934419414,9.64761036,20.252,20.24,29.65]
[1693934420324,9.64761036,20.252,20.234,20.0]
[1693934420525,9.64761036,20.252,20.235,55.0]
[1693934421321,9.64761036,20.252,20.237,7.708]
[1693934421626,9.64761036,20.252,20.238,55.0]
[1693934423822,9.64761036,20.252,20.234,20.0]
[1693934424135,29.65,20.25,20.234,20.0]
[1693934424312,7.704,20.247,20.234,20.0]
[1693934424733,1.94461036,20.252,20.235,7.709]
[1693934424931,7.703,20.252,20.24,29.65]
[1693934425224,1.94461036,20.251,20.242,7.706]
[1693934425529,1.94461036,20.259,20.242,7.706]
[1693934425710,1.94461036,20.257,20.243,55.0]
[1693934425909,1.94461036,20.254,20.243,55.0]
[1693934426311,9.64661036,20.255,20.243,55.0]
[1693934426611,1.94461036,20.254,20.242,7.706]
[1693934427112,7.702,20.254,20.242,7.706]
[1693934427323,1.94461036,20.253,20.242,7.706]
[1693934427523,9.64661036,20.253,20.24,37.357]
[1693934427834,55.0,20.252,20.235,7.709]
[1693934428128,1.94461036,20.247,20.235,7.709]
[1693934430514,9.64961036,20.247,20.235,7.709]
[1693934430727,9.64961036,20.247,20.234,20.0]
[1693934431027,1.94461036,20.247,20.237,7.708]
[1693934432030,1.94461036,20.248,20.237,7.708]
[1693934433022,9.64861036,20.249,20.237,7.708]
[1693934433624,9.64861036,20.249,20.234,7.709]
[1693934433824,9.64861036,20.249,20.235,75.0]
[1693934434514,9.64861036,20.249,20.235,82.709]
[1693934437829,9.64861036,20.249,20.24,29.65]
[1693934437830,1.94461036,20.249,20.24,29.65]
[1693934438043,1.94461036,20.25,20.242,7.706]
[1693934438224,9.64661036,20.253,20.24,29.65]
[1693934438426,9.64661036,20.253,20.241,55.0]
[1693934439139,9.64661036,20.253,20.242,7.706]
[1693934439881,1.94461036,20.254,20.242,7.706]
[1693934440140,991.7,20.274,20.241,55.0]
[1693934440141,1.94461036,20.263,20.246,32.598]
[1693934440323,99.2755,20.268,20.25,29.65]
[1693934440324,7.698,20.264,20.25,29.65]
[1693934440530,1.94461036,20.263,20.251,62.703]
[1693934440842,9.64261036,20.263,20.251,7.703]
[1693934441438,1.94461036,20.263,20.251,7.703]
[1693934441742,1.94461036,20.264,20.252,55.0]
[1693934441945,1.94461036,20.264,20.253,7.702]
[1693934442851,1.94461036,20.266,20.256,7.701]
[1693934443028,29.65,20.27,20.254,55.0]
[1693934443029,9.64161036,20.267,20.254,7.701]
[1693934443336,7.697,20.266,20.254,7.701]
[1693934443557,1.94461036,20.265,20.254,7.701]
[1693934443723,1.94461036,20.265,20.252,62.702]
[1693934444035,9.64261036,20.265,20.252,62.702]
[1693934444854,1.94461036,20.265,20.252,87.588]
[1693934445044,1.94461036,20.266,20.252,87.588]
[1693934445340,7.697,20.267,20.252,62.702]
[1693934445540,20.0,20.268,20.252,62.702]
[1693934445747,1.94461036,20.267,20.252,62.702]
[1693934446238,1.94461036,20.268,20.252,62.702]
[1693934446432,1.94461036,20.269,20.252,62.702]
[1693934446637,1.94461036,20.269,20.253,20.0]
[1693934446842,1.94461036,20.269,20.26,29.61]
[1693934447025,41.43077635,20.273,20.26,29.61]
[1693934447375,41.43077635,20.273,20.261,55.0]
[1693934447376,7.695,20.272,20.261,55.0]
[1693934447548,1.94461036,20.271,20.255,55.0]
[1693934447731,1.94461036,20.272,20.26,29.61]
[1693934448045,1.94461036,20.275,20.262,7.698]
[1693934448223,1.94461036,20.275,20.263,55.0]
[1693934449226,1.94461036,20.275,20.263,62.698]
[1693934450439,1.94461036,20.277,20.263,62.698]
[1693934450834,7.691,20.282,20.264,20.0]
[1693934451128,1.94461036,20.281,20.269,7.696]
[1693934451334,7.69,20.284,20.269,7.696]
[1693934451632,26.78861036,20.283,20.27,55.0]
[1693934451838,1.94461036,20.283,20.27,92.305]
[1693934452727,1.94461036,20.285,20.27,260.17840225]
[1693934452932,24.835,20.294,20.275,7.694]
[1693934452933,7.688,20.291,20.275,7.694]
[1693934453234,7.688,20.291,20.276,82.693]
[1693934453235,1.94461036,20.29,20.276,82.693]
[1693934453542,1.94461036,20.29,20.276,62.693]
[1693934453746,7.688,20.29,20.276,62.693]
[1693934454156,0.59161394,20.289,20.276,55.0]
[1693934454351,1.0235378,20.29,20.276,55.0]
[1693934454843,8.7115378,20.29,20.276,62.693]
[1693934455352,7.688,20.29,20.276,62.693]
[1693934455534,7.688,20.29,20.276,55.0]
[1693934456533,7.688,20.29,20.276,7.693]
[1693934456852,0.67180316,20.289,20.273,7.694]
[1693934457036,7.689,20.289,20.274,20.0]
[1693934457443,7.689,20.289,20.274,27.694]
[1693934458445,0.49605418,20.288,20.274,27.694]
[1693934459156,7.689,20.289,20.274,27.694]
[1693934459454,0.66654112,20.291,20.274,27.694]
[1693934459635,64.144324,20.292,20.278,7.692]
[1693934461437,0.73932551,20.294,20.279,62.692]
[1693934462037,8.42632551,20.294,20.279,62.692]
[1693934462245,7.687,20.294,20.279,62.692]
[1693934462444,1.20113125,20.293,20.279,62.692]
[1693934462754,7.687,20.292,20.279,55.0]
[1693934462957,7.687,20.292,20.278,55.0]
[1693934463246,0.56555652,20.291,20.276,24.56940225]
[1693934463454,0.56555652,20.291,20.274,20.0]
[1693934463653,0.56555652,20.291,20.275,55.0]
[1693934463859,0.56555652,20.291,20.276,27.693]
[1693934463860,8.25355652,20.291,20.276,27.693]
[1693934464056,7.688,20.291,20.277,55.0]
[1693934464453,62.692,20.294,20.277,55.0]
[1693934464654,7.688,20.291,20.277,55.0]
[1693934468146,62.687,20.293,20.277,62.693]
[1693934468366,1.13645469,20.292,20.277,62.693]
[1693934468652,1.13645469,20.292,20.28,29.54]
[1693934468850,1.5515993,20.298,20.283,7.69]
[1693934469449,1.5515993,20.298,20.284,62.69]
[1693934469643,83.703,20.31,20.284,62.69]
[1693934469644,1.5515993,20.302,20.29,29.54]
[1693934469845,78.814403,20.303,20.29,29.54]
[1693934470060,0.75025637,20.302,20.29,37.228]
[1693934470240,0.75025637,20.302,20.291,55.0]
[1693934470436,93.0841,20.309,20.291,62.687]
[1693934470437,7.682,20.307,20.291,62.687]
[1693934470638,1.66721034,20.306,20.291,62.687]
[1693934471552,72.03621034,20.306,20.291,62.687]
[1693934472051,64.35421034,20.306,20.291,62.687]
[1693934472448,72.03621034,20.306,20.287,7.689]
[1693934473852,72.03621034,20.306,20.288,55.0]
[1693934474052,55.0,20.305,20.289,7.688]
[1693934474358,9.35021034,20.304,20.29,55.0]
[1693934475251,1.66721034,20.304,20.29,92.228]
[1693934475450,1.94461036,20.308,20.29,92.228]
[1693934476157,123.67515542,20.322,20.3,29.54]
[1693934476158,93.848545,20.31,20.3,29.54]
[1693934476463,7.677,20.319,20.303,7.683]
[1693934476868,0.83035147,20.318,20.304,55.0]
[1693934477062,0.83035147,20.318,20.304,62.683]
[1693934477377,1.43502122,20.317,20.304,62.683]
[1693934477549,122.194,20.323,20.304,62.683]
[1693934477754,7.678,20.317,20.304,62.683]
[1693934478059,7.678,20.318,20.304,62.683]
[1693934479250,7.678,20.318,20.305,21.06696465]
[1693934479445,137.26198029,20.323,20.306,55.0]
[1693934479662,7.677,20.319,20.307,1.06696465]
[1693934479966,7.677,20.319,20.306,55.0]
[1693934481249,7.677,20.319,20.305,20.0]
[1693934481451,7.677,20.32,20.306,7.682]
[1693934481651,7.677,20.32,20.307,55.0]
[1693934482152,7.677,20.32,20.305,55.0]
[1693934482454,7.677,20.32,20.306,1.24113378]
[1693934483465,32.48,20.32,20.306,1.24113378]
[1693934484452,55.0,20.319,20.298,7.685]
[1693934484658,7.679,20.313,20.298,7.685]
[1693934485162,7.679,20.313,20.3,49.08]
[1693934485361,7.679,20.313,20.301,9.05840264]
[1693934485554,7.679,20.313,20.3,49.08]
[1693934485756,7.679,20.313,20.301,0.80981979]
[1693934485956,7.679,20.313,20.297,1.68506215]
[1693934486162,7.679,20.313,20.297,56.68506215]
[1693934486363,7.679,20.313,20.298,55.0]
[1693934486667,7.679,20.313,20.299,1.68506215]
[1693934486965,7.679,20.313,20.296,1.91168172]
[1693934487166,7.679,20.313,20.299,1.91168172]
[1693934487362,7.679,20.313,20.299,56.91168172]
[1693934488556,7.679,20.313,20.299,1.91168172]
[1693934488755,55.0,20.312,20.293,2.22940128]
[1693934488956,7.681,20.308,20.296,7.686]
[1693934489151,7.681,20.31,20.297,2.22940128]
[1693934489454,7.681,20.31,20.298,7.685]
[1693934489762,121.6149,20.315,20.298,7.685]
[1693934490166,121.6149,20.315,20.299,55.0]
[1693934490466,121.6149,20.315,20.3,2.22940128]
[1693934490764,7.68,20.311,20.3,2.22940128]
[1693934491760,96.8059,20.315,20.302,2.22940128]
[1693934491961,96.8059,20.315,20.303,7.683]
[1693934492154,104.4849,20.315,20.303,7.683]
[1693934492376,7.679,20.315,20.304,55.0]
[1693934492563,7.679,20.315,20.302,1.08707114]
[1693934492767,61.81,20.315,20.301,1.14390981]
[1693934492959,55.0,20.314,20.301,1.14390981]
[1693934493154,7.68,20.312,20.3,7.684]
[1693934493554,7.68,20.312,20.296,1.14390981]
[1693934493756,55.0,20.311,20.296,1.14390981]
[1693934493956,7.682,20.307,20.292,20.0]
[1693934494158,7.681,20.309,20.295,7.686]
[1693934494361,7.681,20.309,20.296,2.65999457]
[1693934494569,7.681,20.309,20.298,7.685]
[1693934494779,7.68,20.311,20.298,7.685]
[1693934495069,7.68,20.311,20.295,10.34599457]
[1693934495269,62.681,20.31,20.295,10.34599457]
[1693934496069,151.5513,20.315,20.295,10.34599457]
[1693934496070,7.68,20.312,20.295,10.34599457]
[1693934496270,7.68,20.312,20.296,55.0]
[1693934496579,7.68,20.312,20.298,7.685]
[1693934496771,7.68,20.312,20.299,55.0]
[1693934496973,159.2303,20.315,20.3,7.684]
[1693934497275,7.68,20.312,20.301,55.0]
[1693934497474,7.68,20.312,20.293,2.43088211]
[1693934497869,55.0,20.313,20.297,2.43088211]
[1693934498174,105.0993,20.315,20.301,7.684]
[1693934498566,105.0993,20.315,20.303,7.683]
[1693934498765,105.0993,20.315,20.304,55.0]
[1693934499678,105.0993,20.315,20.302,55.0]
[1693934501378,7.679,20.315,20.302,62.683]
[1693934502966,99.1998,20.318,20.302,62.683]
[1693934503366,24.801,20.322,20.303,0.7692888]
[1693934503568,75.66944987,20.321,20.303,0.7692888]
[1693934503866,7.678,20.318,20.304,7.683]
[1693934504082,7.677,20.32,20.305,75.7692888]
[1693934504270,7.677,20.32,20.306,7.682]
[1693934504776,7.677,20.32,20.307,55.0]
[1693934504981,7.677,20.32,20.307,62.681]
[1693934505769,7.677,20.32,20.307,55.0]
[1693934506087,7.677,20.32,20.306,55.0]
[1693934506972,7.677,20.32,20.306,62.682]
[1693934507172,55.0,20.319,20.305,20.0]
[1693934507391,7.678,20.317,20.303,7.683]
[1693934507676,7.678,20.317,20.304,20.0]
[1693934507985,7.678,20.317,20.304,27.682]
[1693934508878,100.4037,20.319,20.305,55.0]
[1693934509075,100.4037,20.319,20.306,8.33833928]
[1693934509278,100.4037,20.319,20.304,20.0]
[1693934509595,100.4037,20.319,20.305,0.71186152]
[1693934509596,55.0,20.318,20.305,0.71186152]
[1693934509776,7.679,20.315,20.302,8.39486152]
[1693934509977,7.678,20.317,20.303,20.0]
[1693934510180,7.678,20.317,20.304,7.682]
[1693934510481,7.678,20.317,20.305,20.0]
[1693934511282,100.4037,20.319,20.306,7.682]
[1693934512293,125.2077,20.319,20.305,20.0]
[1693934512600,55.0,20.318,20.302,7.683]
[1693934512774,55.0,20.318,20.303,75.0]
[1693934512977,55.0,20.318,20.306,7.682]
[1693934513306,92.7267,20.319,20.306,7.682]
[1693934513977,7.677,20.321,20.307,0.56434633]
[1693934514193,97.0155,20.321,20.307,0.56434633]
[1693934514383,97.0155,20.321,20.308,7.681]
[1693934515387,104.6915,20.321,20.308,7.681]
[1693934515780,97.0155,20.321,20.308,7.681]
[1693934517186,97.0155,20.321,20.309,55.0]
[1693934517381,97.0155,20.321,20.311,7.68]
[1693934518794,97.0155,20.321,20.312,55.0]
[1693934518984,7.674,20.328,20.314,7.679]
[1693934519697,55.68957778,20.327,20.314,7.679]
[1693934519900,7.675,20.326,20.314,7.679]
[1693934520302,0.59777621,20.325,20.314,7.679]
[1693934520994,0.68726761,20.327,20.315,62.678]
[1693934521188,0.86698119,20.328,20.315,7.678]
[1693934521785,0.86698119,20.328,20.316,55.0]
[1693934521986,8.54098119,20.328,20.316,55.0]
[1693934522502,8.54098119,20.328,20.314,55.0]
[1693934522702,8.54098119,20.328,20.314,62.679]
[1693934523787,8.54098119,20.328,20.314,55.0]
[1693934523994,8.54098119,20.328,20.313,55.0]
[1693934524188,91.6111,20.327,20.313,62.679]
[1693934524399,0.86698119,20.326,20.313,62.679]
[1693934524694,7.674,20.327,20.313,62.679]
[1693934524998,0.68682237,20.326,20.313,62.679]
[1693934525200,1.24706046,20.328,20.313,62.679]
[1693934525392,8.92106046,20.328,20.313,62.679]
[1693934526601,8.92106046,20.328,20.312,7.68]
[1693934527900,8.92106046,20.328,20.313,55.0]
[1693934528701,8.92106046,20.328,20.313,62.679]
[1693934529297,62.673,20.331,20.313,62.679]
[1693934529498,96.825,20.334,20.319,7.677]
[1693934529697,96.825,20.334,20.322,7.676]
[1693934530293,96.825,20.334,20.318,24.805]
[1693934530497,104.497,20.334,20.314,24.809]
[1693934530698,1.07211127,20.333,20.315,75.0]
[1693934531000,96.825,20.334,20.319,7.677]
[1693934531201,104.497,20.335,20.319,7.677]
[1693934531406,98.1823,20.337,20.32,55.0]
[1693934531589,0.96190697,20.336,20.32,55.0]
[1693934532108,7.672,20.333,20.317,7.678]
[1693934532302,7.672,20.333,20.318,55.0]
[1693934532704,7.672,20.333,20.318,62.677]
[1693934533102,7.672,20.333,20.318,7.677]
[1693934533296,55.0,20.332,20.318,7.677]
[1693934533496,7.673,20.331,20.318,7.677]
[1693934533717,7.672,20.333,20.319,55.0]
[1693934534013,7.672,20.333,20.319,62.677]
[1693934534507,0.67253882,20.332,20.316,7.678]
[1693934534694,0.67253882,20.332,20.314,64.20240225]
[1693934534695,7.673,20.331,20.317,7.677]
[1693934534904,0.67830213,20.33,20.316,7.678]
[1693934535104,7.673,20.331,20.316,7.678]
[1693934536206,7.673,20.331,20.317,62.678]
[1693934536397,7.673,20.331,20.315,7.678]
[1693934536600,7.673,20.331,20.316,55.0]
[1693934537296,7.673,20.331,20.316,62.678]
[1693934537796,7.673,20.331,20.316,55.0]
[1693934537997,7.673,20.331,20.315,55.0]
[1693934538198,7.673,20.331,20.315,62.678]
[1693934539299,7.673,20.331,20.315,7.678]
[1693934539505,0.52301474,20.329,20.315,7.678]
[1693934539897,7.673,20.33,20.315,7.678]
[1693934540103,55.0,20.332,20.316,55.0]
[1693934540302,93.52679171,20.335,20.316,55.0]
[1693934540303,7.673,20.331,20.317,7.677]
[1693934540900,7.672,20.334,20.32,29.46]
[1693934541106,7.671,20.336,20.323,7.675]
[1693934541301,0.94953349,20.335,20.321,7.676]
[1693934541502,7.672,20.334,20.321,7.676]
[1693934541710,0.94953349,20.333,20.321,7.676]
[1693934542211,8.82351505,20.335,20.321,7.676]
[1693934542922,8.82351505,20.335,20.319,7.677]
[1693934543812,8.82451505,20.333,20.319,7.677]
[1693934544214,7.672,20.333,20.319,7.677]
[1693934544508,55.0,20.334,20.319,7.677]
[1693934544696,0.77862517,20.333,20.319,7.677]
[1693934544904,7.673,20.331,20.316,62.678]
[1693934545215,55.0,20.33,20.316,7.678]
[1693934545417,7.673,20.329,20.316,7.678]
[1693934545623,7.673,20.329,20.314,7.679]
[1693934545916,7.673,20.329,20.315,27.678]
[1693934546719,55.0,20.328,20.315,20.0]
[1693934547021,7.674,20.327,20.314,7.679]
[1693934547220,7.674,20.327,20.304,7.682]
[1693934547221,55.85450487,20.326,20.304,7.682]
[1693934547516,7.677,20.32,20.305,27.682]
[1693934549819,54.124,20.321,20.305,27.682]
[1693934550024,7.676,20.322,20.305,27.682]
[1693934550226,7.676,20.322,20.306,0.76670288]
[1693934550411,7.676,20.322,20.308,7.681]
[1693934550609,3.58046,20.325,20.31,29.46]
[1693934550807,92.4428,20.327,20.31,29.46]
[1693934550808,92.4428,20.327,20.314,7.679]
[1693934551011,92.4428,20.327,20.315,55.0]
[1693934551208,92.4428,20.327,20.317,7.678]
[1693934551420,37.133,20.329,20.317,7.678]
[1693934551622,37.133,20.329,20.31,108.18840225]
[1693934551623,37.133,20.329,20.31,54.02940225]
[1693934551808,0.57688262,20.328,20.311,7.68]
[1693934552014,55.57688262,20.328,20.311,7.68]
[1693934553004,7.674,20.327,20.305,44.56940225]
[1693934553204,29.46,20.32,20.298,14.68389955]
[1693934553418,7.679,20.314,20.299,1.15583296]
[1693934553622,7.679,20.314,20.297,7.685]
[1693934553934,7.679,20.314,20.295,7.686]
[1693934554227,7.68,20.311,20.298,7.685]
[1693934555022,7.68,20.311,20.294,1.07329873]
[1693934555322,7.68,20.311,20.297,1.07329873]
[1693934555819,7.68,20.311,20.295,1.07329873]
[1693934556131,7.68,20.311,20.295,8.75929873]
[1693934556427,7.68,20.311,20.296,55.0]
[1693934556631,7.68,20.311,20.299,7.684]
[1693934556813,7.68,20.311,20.3,55.0]
[1693934557506,7.679,20.313,20.3,62.684]
[1693934557717,7.679,20.313,20.301,0.67564468]
[1693934558105,7.679,20.313,20.301,7.684]
[1693934558313,7.679,20.313,20.3,55.0]
[1693934558715,7.679,20.313,20.298,55.0]
[1693934558923,7.679,20.313,20.299,0.58682844]
[1693934559213,7.68,20.31,20.296,1.07711961]
[1693934559529,7.68,20.312,20.299,7.684]
[1693934559912,78.952,20.316,20.299,7.684]
[1693934559913,7.679,20.314,20.299,7.684]
[1693934560328,7.679,20.314,20.3,55.0]
[1693934560820,7.679,20.314,20.301,0.5811912]
[1693934561029,7.68,20.312,20.3,0.59876209]
[1693934561331,55.0,20.313,20.3,7.684]
[1693934561527,7.68,20.313,20.3,7.684]
[1693934562029,90.087,20.317,20.3,56.814]
[1693934562223,90.087,20.317,20.301,56.11321043]
[1693934562422,7.678,20.318,20.305,7.682]
[1693934562628,20.0,20.317,20.306,55.0]
[1693934562808,27.678,20.317,20.306,55.0]
[1693934563522,27.678,20.317,20.304,55.0]
[1693934563727,27.678,20.317,20.305,0.58173674]
[1693934564032,52.484,20.317,20.3,49.13]
[1693934564215,52.484,20.317,20.301,55.0]
[1693934564216,7.68,20.312,20.301,55.0]
[1693934564417,7.68,20.312,20.3,55.0]
[1693934564733,7.68,20.312,20.292,20.0]
[1693934564916,7.68,20.312,20.297,1.17613668]
[1693934565226,7.68,20.312,20.297,8.86113668]
[1693934565410,55.0,20.316,20.297,8.86113668]
[1693934565618,7.68,20.313,20.297,33.69213668]
[1693934566618,7.678,20.318,20.298,55.0]
[1693934566833,20.0,20.317,20.304,7.683]
[1693934567017,27.678,20.317,20.305,55.0]
[1693934569519,27.678,20.317,20.303,55.0]
[1693934570120,55.0,20.316,20.301,7.684]
[1693934570336,7.679,20.314,20.301,7.684]
[1693934571637,7.679,20.314,20.302,55.0]
[1693934571829,7.679,20.314,20.301,0.71179895]
[1693934573526,7.679,20.314,20.3,55.0]
[1693934574324,7.679,20.314,20.3,62.684]
[1693934575818,55.0,20.313,20.296,15.13891625]
[1693934576138,7.681,20.308,20.296,15.13891625]
[1693934577036,7.681,20.308,20.29,63.72822746]
[1693934577238,7.681,20.308,20.293,64.28321508]
[1693934577441,7.681,20.308,20.294,20.0]
[1693934577638,7.681,20.308,20.295,1.59621508]
[1693934577819,75.0,20.307,20.292,1.59621508]
[1693934578022,7.683,20.303,20.285,22.17033296]
[1693934578234,7.683,20.303,20.285,29.86033296]
[1693934579544,7.683,20.303,20.285,54.70533296]
[1693934580232,7.683,20.303,20.285,34.70533296]
[1693934580739,7.683,20.303,20.286,55.0]
[1693934580946,7.683,20.303,20.289,7.688]
[1693934581140,7.683,20.303,20.29,55.0]